[Event "20th Prague Open 2022"]
[Site "Prague"]
[Date "2022.01.08"]
[Round "2.12"]
[White "Carlsson, Ludvig"]
[Black "Delgerdalai, Bayarjavkhlan"]
[Result "1-0"]
[ECO "A28"]
[WhiteElo "2355"]
[BlackElo "2062"]
[Annotator "ChessBase"]
[PlyCount "93"]
[EventDate "2022.01.07"]
[EventType "swiss"]
[EventCountry "CZE"]
[SourceTitle "playchess.com"]
[Source "ChessBase"]
[SourceQuality "1"]
[TimeControl "40/5400+30:1800+30"]

1. c4 {[%emt 0:01:06]} e5 {[%emt 0:00:19]} 2. Nc3 {[%emt 0:00:53]} Nf6 {[%emt 0:00:07]} 3. Nf3 {[%emt 0:00:10]} Nc6 {[%emt 0:00:23]} 4. e3 {[%emt 0:00:09]} Bb4 {[%emt 0:01:15]} 5. Qc2 {[%emt 0:00:45]} O-O {[%emt 0:01:42]} 6. Nd5 {[%emt 0:00:31]} Be7 {[%emt 0:04:51]} 7. a3 {[%emt 0:11:27]} a5 {[%emt 0:01:34]} 8. b3 {[%emt 0:00:38]} d6 {[%emt 0:06:24]} 9. Bb2 {[%emt 0:06:38]} h6 {[%emt 0:03:16]} 10. d4 {[%emt 0:13:51]} Bg4 {[%emt 0:13:07]} 11. Nxe7+ {[%emt 0:02:38]} Qxe7 {[%emt 0:00:46]} 12. d5 {[%emt 0:00:48]} Nb8 {[%emt 0:04:51]} 13. Be2 {[%emt 0:05:39]} Nbd7 {[%emt 0:05:17]} 14. h3 {[%emt 0:05:04]} Bh5 {[%emt 0:02:15]} 15. Nh4 {[%emt 0:00:23]} Bxe2 {[%emt 0:06:10]} 16. Nf5 {[%emt 0:00:07]} Qd8 {[%emt 0:00:23]} 17. Kxe2 {[%emt 0:00:19]} g6 {[%emt 0:04:43]} 18. Nxh6+ {[%emt 0:04:49]} Kg7 {[%emt 0:00:02]} 19. Ng4 {[%emt 0:00:16]} Nxg4 {[%emt 0:00:06]} 20. hxg4 {[%emt 0:00:05]} Qg5 {[%emt 0:00:12]} 21. f3 {[%emt 0:01:46]} f5 {[%emt 0:00:44]} 22. Raf1 {[%emt 0:00:30]} Rh8 {[%emt 0:07:11]} 23. Rh3 {[%emt 0:08:17]} fxg4 {[%emt 0:01:51]} 24. f4 {[%emt 0:01:28]} Qe7 {[%emt 0:03:18]} 25. fxe5 {[%emt 0:02:14]} Nxe5 {[%emt 0:02:04]} 26. Rxh8 {[%emt 0:00:34]} Rxh8 {[%emt 0:00:12]} 27. Qe4 {[%emt 0:00:07]} Rh4 {[%emt 0:02:25]} 28. Qf4 {[%emt 0:06:22]} b6 {[%emt 0:02:37]} 29. a4 {[%emt 0:00:20]} Rh5 {[%emt 0:04:05]} 30. Qxg4 {[%emt 0:03:22]} Rg5 {[%emt 0:00:57]} 31. Qe4 {[%emt 0:01:26]} Qe8 {[%emt 0:03:12]} 32. Qf3 {[%emt 0:07:56]} Rf5 {[%emt 0:02:03]} 33. Qg4 {[%emt 0:00:16]} Rxf1 {[%emt 0:01:55]} 34. Kxf1 {[%emt 0:00:06]} Qf7+ {[%emt 0:01:15]} 35. Ke2 {[%emt 0:01:33]} Qf6 {[%emt 0:02:08]} 36. Bxe5 {[%emt 0:03:09]} dxe5 {[%emt 0:07:51]} 37. Qd7+ {[%emt 0:00:11]} Kh6 {[%emt 0:00:04]} 38. Qxc7 {[%emt 0:00:25]} Qf5 {[%emt 0:01:02]} 39. Qe7 {[%emt 0:00:46]} Qc2+ {[%emt 0:02:16]} 40. Kf3 {[%emt 0:00:15]} Qxb3 {[%emt 0:01:58]} 41. d6 {[%emt 0:33:35]} Qxc4 {[%emt 0:32:07]} 42. d7 {[%emt 0:00:46]} Qf1+ {[%emt 0:00:00]} 43. Kg3 {[%emt 0:00:00]} Qe1+ {[%emt 0:00:00]} 44. Kh2 {[%emt 0:00:00]} g5 {[%emt 0:00:00]} 45. Qf6+ {[%emt 0:00:00]} Kh7 {[%emt 0:00:00]} 46. Qf5+ {[%emt 0:00:00]} Kh6 {[%emt 0:00:00]} 47. d8=Q {[%emt 0:00:00]} 1-0

[Event "20th Prague Open 2022"]
[Site "Prague"]
[Date "2022.01.08"]
[Round "2.13"]
[White "Pham, Khoi"]
[Black "Sorm, Daniel"]
[Result "1/2-1/2"]
[ECO "C78"]
[WhiteElo "2114"]
[BlackElo "2348"]
[Annotator "ChessBase"]
[PlyCount "53"]
[EventDate "2022.01.07"]
[EventType "swiss"]
[EventCountry "CZE"]
[SourceTitle "playchess.com"]
[Source "ChessBase"]
[SourceQuality "1"]
[TimeControl "40/5400+30:1800+30"]

1. e4 {[%emt 0:00:02]} e5 {[%emt 0:01:18]} 2. Nf3 {[%emt 0:00:06]} Nc6 {[%emt 0:00:07]} 3. Bb5 {[%emt 0:00:05]} a6 {[%emt 0:00:21]} 4. Ba4 {[%emt 0:00:34]} Nf6 {[%emt 0:00:17]} 5. O-O {[%emt 0:00:11]} b5 {[%emt 0:00:15]} 6. Bb3 {[%emt 0:00:11]} Bc5 {[%emt 0:01:32]} 7. c3 {[%emt 0:00:38]} d6 {[%emt 0:00:23]} 8. a4 {[%emt 0:00:17]} Bd7 {[%emt 0:05:34]} 9. d4 {[%emt 0:05:19]} Bb6 {[%emt 0:00:16]} 10. h3 {[%emt 0:05:12]} h6 {[%emt 0:02:33]} 11. Be3 {[%emt 0:06:27]} Nxe4 {[%emt 0:23:20]} 12. dxe5 {[%emt 0:04:33]} Bxe3 {[%emt 0:00:43]} 13. fxe3 {[%emt 0:03:07]} O-O {[%emt 0:01:31]} 14. exd6 {[%emt 0:06:04]} Nxd6 {[%emt 0:01:36]} 15. Nbd2 {[%emt 0:04:01]} Qe7 {[%emt 0:02:59]} 16. e4 {[%emt 0:03:10]} Rad8 {[%emt 0:08:38]} 17. axb5 {[%emt 0:10:34]} axb5 {[%emt 0:00:18]} 18. Qe2 {[%emt 0:05:44]} Be6 {[%emt 0:04:50]} 19. Bxe6 {[%emt 0:06:05]} Qxe6 {[%emt 0:00:24]} 20. Nd4 {[%emt 0:00:56]} Qe8 {[%emt 0:09:21]} 21. Rae1 {[%emt 0:03:51]} Ne5 {[%emt 0:04:07]} 22. N2f3 {[%emt 0:02:55]} Nxf3+ {[%emt 0:03:23]} 23. Nxf3 {[%emt 0:03:22]} f6 {[%emt 0:04:09]} 24. e5 {[%emt 0:02:23]} fxe5 {[%emt 0:00:22]} 25. Qxe5 {[%emt 0:03:14]} Qxe5 {[%emt 0:00:36]} 26. Rxe5 {[%emt 0:00:05]} Rde8 {[%emt 0:06:43]} 27. Rfe1 {[%emt 0:00:57]} 1/2-1/2

[Event "20th Prague Open 2022"]
[Site "Prague"]
[Date "2022.01.08"]
[Round "2.15"]
[White "Lim, Zhuo Ren"]
[Black "Kukucka, Matej"]
[Result "1-0"]
[ECO "D78"]
[WhiteElo "2311"]
[BlackElo "2104"]
[Annotator "ChessBase"]
[PlyCount "57"]
[EventDate "2022.01.07"]
[EventType "swiss"]
[EventCountry "CZE"]
[SourceTitle "playchess.com"]
[Source "ChessBase"]
[SourceQuality "1"]
[TimeControl "40/5400+30:1800+30"]

1. d4 {[%emt 0:01:02]} Nf6 {[%emt 0:00:22]} 2. c4 {[%emt 0:00:20]} g6 {[%emt 0:00:24]} 3. g3 {[%emt 0:00:42]} c6 {[%emt 0:00:24]} 4. Bg2 {[%emt 0:00:45]} d5 {[%emt 0:00:40]} 5. Nf3 {[%emt 0:00:33]} Bg7 {[%emt 0:00:23]} 6. O-O {[%emt 0:00:14]} O-O {[%emt 0:00:24]} 7. Qa4 {[%emt 0:00:21]} dxc4 {[%emt 0:00:39]} 8. Qxc4 {[%emt 0:00:18]} Bf5 {[%emt 0:01:56]} 9. Nc3 {[%emt 0:02:02]} Ne4 {[%emt 0:01:45]} 10. Nh4 {[%emt 0:07:38]} b5 {[%emt 0:10:54]} 11. Qb3 {[%emt 0:05:27]} Nxc3 {[%emt 0:13:56]} 12. bxc3 {[%emt 0:00:08]} Be6 {[%emt 0:00:49]} 13. Qc2 {[%emt 0:00:32]} Bd5 {[%emt 0:03:23]} 14. e4 {[%emt 0:00:29]} Bc4 {[%emt 0:00:03]} 15. Rd1 {[%emt 0:00:14]} Nd7 {[%emt 0:01:54]} 16. Nf3 {[%emt 0:00:26]} Nb6 {[%emt 0:04:41]} 17. h4 {[%emt 0:01:06]} f5 {[%emt 0:07:09]} 18. h5 {[%emt 0:04:58]} fxe4 {[%emt 0:01:32]} 19. Nh4 {[%emt 0:00:05]} Bd3 {[%emt 0:03:57]} 20. Rxd3 {[%emt 0:00:06]} exd3 {[%emt 0:00:04]} 21. Qxd3 {[%emt 0:01:17]} Nd5 {[%emt 0:12:26]} 22. h6 {[%emt 0:04:56]} Bf6 {[%emt 0:01:26]} 23. Nxg6 {[%emt 0:00:53]} Rf7 {[%emt 0:00:43]} 24. Bd2 {[%emt 0:10:43]} hxg6 {[%emt 0:08:45]} 25. Qxg6+ {[%emt 0:00:08]} Kf8 {[%emt 0:00:09]} 26. h7 {[%emt 0:00:17]} Ke8 {[%emt 0:00:48]} 27. Bh3 {[%emt 0:04:16]} Nc7 {[%emt 0:03:48]} 28. Qg8+ {[%emt 0:05:36]} Rf8 {[%emt 0:00:05]} 29. Bh6 {[%emt 0:01:34]} 1-0

[Event "20th Prague Open 2022"]
[Site "Prague"]
[Date "2022.01.08"]
[Round "2.18"]
[White "Unneland, Mathias"]
[Black "Mach, Petr"]
[Result "1-0"]
[ECO "B01"]
[WhiteElo "2262"]
[BlackElo "2090"]
[Annotator "ChessBase"]
[PlyCount "47"]
[EventDate "2022.01.07"]
[EventType "swiss"]
[EventCountry "CZE"]
[SourceTitle "playchess.com"]
[Source "ChessBase"]
[SourceQuality "1"]
[TimeControl "40/5400+30:1800+30"]

1. e4 d5 2. exd5 Nf6 3. d4 Nxd5 4. Nf3 g6 5. c4 Nb6 6. Nc3 Bg7 7. Be3 O-O 8. Qd2 Bg4 9. Ng5 e5 10. d5 f6 11. f3 fxg5 12. fxg4 c6 13. O-O-O cxd5 14. cxd5 Qc8 15. h3 Na6 16. Kb1 Nc4 17. Bxc4 Qxc4 18. Bxg5 e4 19. Rhe1 Nb4 20. Rxe4 Bxc3 21. Rxc4 Bxd2 22. Rxd2 Rf1+ 23. Rc1 Raf8 24. Rdd1 1-0

[Event "20th Prague Open 2022"]
[Site "Prague"]
[Date "2022.01.08"]
[Round "2.19"]
[White "Dev, Shah"]
[Black "Bouska, Jiri"]
[Result "1/2-1/2"]
[ECO "E62"]
[WhiteElo "2243"]
[BlackElo "2071"]
[Annotator "ChessBase"]
[PlyCount "117"]
[EventDate "2022.01.07"]
[EventType "swiss"]
[EventCountry "CZE"]
[SourceTitle "playchess.com"]
[Source "ChessBase"]
[SourceQuality "1"]
[TimeControl "40/5400+30:1800+30"]

1. d4 {[%emt 0:06:41]} Nf6 {[%emt 0:00:26]} 2. c4 {[%emt 0:00:08]} g6 {[%emt 0:00:15]} 3. Nc3 {[%emt 0:00:06]} Bg7 {[%emt 0:00:07]} 4. Nf3 {[%emt 0:00:22]} O-O {[%emt 0:00:12]} 5. g3 {[%emt 0:00:04]} d6 {[%emt 0:00:06]} 6. Bg2 {[%emt 0:00:05]} c6 {[%emt 0:00:11]} 7. O-O {[%emt 0:00:08]} Bf5 {[%emt 0:00:16]} 8. Nh4 {[%emt 0:08:14]} Be6 {[%emt 0:00:18]} 9. d5 {[%emt 0:01:43]} cxd5 {[%emt 0:00:12]} 10. cxd5 {[%emt 0:00:07]} Bd7 {[%emt 0:00:31]} 11. e4 {[%emt 0:04:30]} Na6 {[%emt 0:05:35]} 12. h3 {[%emt 0:02:27]} Rc8 {[%emt 0:06:45]} 13. Be3 {[%emt 0:01:07]} Nc5 {[%emt 0:15:14]} 14. Qe2 {[%emt 0:29:14]} a6 {[%emt 0:10:46]} 15. Rfc1 {[%emt 0:15:14]} b5 {[%emt 0:02:48]} 16. b4 {[%emt 0:03:39]} Nb7 {[%emt 0:01:27]} 17. Qd2 {[%emt 0:05:47]} Rc4 {[%emt 0:03:16]} 18. Rab1 {[%emt 0:00:16]} Qb8 {[%emt 0:02:36]} 19. Bf1 {[%emt 0:07:59]} Nxe4 {[%emt 0:01:08]} 20. Nxe4 {[%emt 0:00:05]} Rxe4 {[%emt 0:00:07]} 21. Nf3 {[%emt 0:00:05]} e6 {[%emt 0:11:09]} 22. Bd3 {[%emt 0:00:36]} exd5 {[%emt 0:00:28]} 23. Bxe4 {[%emt 0:00:06]} dxe4 {[%emt 0:00:07]} 24. Ng5 {[%emt 0:00:14]} h6 {[%emt 0:01:40]} 25. Nxe4 {[%emt 0:00:07]} Bf5 {[%emt 0:00:11]} 26. f3 {[%emt 0:00:48]} d5 {[%emt 0:00:34]} 27. Bf4 {[%emt 0:06:45]} Qd8 {[%emt 0:00:27]} 28. g4 {[%emt 0:02:51]} Bxe4 {[%emt 0:00:58]} 29. fxe4 {[%emt 0:00:10]} Qb6+ {[%emt 0:00:29]} 30. Be3 {[%emt 0:00:32]} d4 {[%emt 0:00:39]} 31. Bxh6 {[%emt 0:01:37]} Bxh6 {[%emt 0:07:02]} 32. Qxh6 {[%emt 0:00:07]} Qd6 {[%emt 0:02:38]} 33. Rb3 {[%emt 0:01:26]} Qe5 {[%emt 0:00:12]} 34. Rd3 {[%emt 0:02:28]} Nd6 {[%emt 0:00:55]} 35. Rcd1 {[%emt 0:01:36]} Nc4 {[%emt 0:02:43]} 36. Re1 {[%emt 0:00:33]} Nb2 {[%emt 0:02:03]} 37. Rb3 {[%emt 0:00:31]} d3 {[%emt 0:01:34]} 38. Qe3 {[%emt 0:00:21]} Rd8 {[%emt 0:00:23]} 39. Rxb2 {[%emt 0:00:39]} Qxb2 {[%emt 0:00:10]} 40. e5 {[%emt 0:00:28]} Qxa2 {[%emt 0:04:26]} 41. Qg5 {[%emt 0:16:23]} Rd5 {[%emt 0:02:13]} 42. Qe3 {[%emt 0:11:13]} Rd7 {[%emt 0:04:13]} 43. Rc1 {[%emt 0:03:20]} d2 {[%emt 0:04:25]} 44. Rd1 {[%emt 0:00:02]} Kg7 {[%emt 0:00:55]} 45. Kf2 {[%emt 0:01:02]} Qc2 {[%emt 0:00:57]} 46. Qf3 {[%emt 0:00:37]} Qc4 {[%emt 0:01:24]} 47. Qf6+ {[%emt 0:00:29]} Kg8 {[%emt 0:00:24]} 48. e6 {[%emt 0:00:23]} Qxe6 {[%emt 0:00:57]} 49. Qxe6 {[%emt 0:00:01]} fxe6 {[%emt 0:00:11]} 50. Ke3 {[%emt 0:00:01]} Rh7 {[%emt 0:01:23]} 51. Rxd2 {[%emt 0:00:17]} Rxh3+ {[%emt 0:00:07]} 52. Kf4 {[%emt 0:00:02]} Rb3 {[%emt 0:00:51]} 53. Rd4 {[%emt 0:00:35]} Rc3 {[%emt 0:01:08]} 54. Rd6 {[%emt 0:01:26]} Kf7 {[%emt 0:01:08]} 55. g5 {[%emt 0:01:39]} Rc4+ {[%emt 0:00:42]} 56. Ke5 {[%emt 0:00:01]} Rxb4 {[%emt 0:00:31]} 57. Rxa6 {[%emt 0:00:08]} Ra4 {[%emt 0:01:00]} 58. Rb6 {[%emt 0:00:10]} Ra7 {[%emt 0:00:49]} 59. Ke4 1/2-1/2

[Event "20th Prague Open 2022"]
[Site "Prague"]
[Date "2022.01.08"]
[Round "2.21"]
[White "Torngren, Gustav"]
[Black "Kudrytskyi, Stanislav"]
[Result "1-0"]
[ECO "A02"]
[WhiteElo "2228"]
[BlackElo "2057"]
[Annotator "ChessBase"]
[PlyCount "51"]
[EventDate "2022.01.07"]
[EventType "swiss"]
[EventCountry "CZE"]
[SourceTitle "playchess.com"]
[Source "ChessBase"]
[SourceQuality "1"]
[TimeControl "40/5400+30:1800+30"]

1. f4 {[%emt 0:00:47]} Nf6 {[%emt 0:00:35]} 2. Nf3 {[%emt 0:00:14]} d5 {[%emt 0:00:09]} 3. e3 {[%emt 0:00:33]} g6 {[%emt 0:00:13]} 4. Be2 {[%emt 0:00:43]} Bg7 {[%emt 0:00:08]} 5. d4 {[%emt 0:00:24]} O-O {[%emt 0:00:08]} 6. c3 {[%emt 0:01:18]} c5 {[%emt 0:02:08]} 7. Ne5 {[%emt 0:00:24]} b6 {[%emt 0:02:27]} 8. Nd2 {[%emt 0:00:20]} Bb7 {[%emt 0:02:18]} 9. h4 {[%emt 0:01:06]} Nbd7 {[%emt 0:09:08]} 10. h5 {[%emt 0:00:27]} cxd4 {[%emt 0:01:15]} 11. exd4 {[%emt 0:00:40]} Ne4 {[%emt 0:01:15]} 12. Nxe4 {[%emt 0:04:33]} dxe4 {[%emt 0:00:02]} 13. hxg6 {[%emt 0:15:54]} hxg6 {[%emt 0:07:04]} 14. Nxg6 {[%emt 0:03:50]} fxg6 {[%emt 0:00:19]} 15. Bc4+ {[%emt 0:00:11]} Rf7 {[%emt 0:00:03]} 16. f5 {[%emt 0:00:28]} Nf6 {[%emt 0:34:14]} 17. fxg6 {[%emt 0:00:35]} Bd5 {[%emt 0:03:39]} 18. gxf7+ {[%emt 0:00:12]} Kxf7 {[%emt 0:01:36]} 19. Bxd5+ {[%emt 0:01:14]} Qxd5 {[%emt 0:00:18]} 20. Qb3 {[%emt 0:00:26]} e6 {[%emt 0:01:40]} 21. Qxd5 {[%emt 0:00:11]} exd5 {[%emt 0:00:01]} 22. Bf4 {[%emt 0:00:17]} Kg6 {[%emt 0:03:43]} 23. Be5 {[%emt 0:01:09]} Bf8 {[%emt 0:00:33]} 24. Bxf6 {[%emt 0:00:28]} Kxf6 {[%emt 0:00:02]} 25. Ke2 {[%emt 0:01:15]} Kg6 {[%emt 0:00:28]} 26. Rh8 {[%emt 0:00:58]} 1-0

[Event "20th Prague Open 2022"]
[Site "Prague"]
[Date "2022.01.08"]
[Round "2.22"]
[White "Skou, Niels"]
[Black "Novotny, Michal"]
[Result "0-1"]
[ECO "A58"]
[WhiteElo "2061"]
[BlackElo "2236"]
[Annotator "ChessBase"]
[PlyCount "120"]
[EventDate "2022.01.07"]
[EventType "swiss"]
[EventCountry "CZE"]
[SourceTitle "playchess.com"]
[Source "ChessBase"]
[SourceQuality "1"]
[TimeControl "40/5400+30:1800+30"]

1. d4 {[%emt 0:00:02]} Nf6 {[%emt 0:07:52]} 2. c4 {[%emt 0:00:11]} c5 {[%emt 0:00:03]} 3. d5 {[%emt 0:00:21]} b5 {[%emt 0:00:02]} 4. cxb5 {[%emt 0:00:17]} a6 {[%emt 0:00:02]} 5. bxa6 {[%emt 0:00:13]} g6 {[%emt 0:00:04]} 6. Nc3 {[%emt 0:00:08]} Bg7 {[%emt 0:00:03]} 7. e4 {[%emt 0:00:32]} O-O {[%emt 0:00:04]} 8. a7 {[%emt 0:00:59]} Rxa7 {[%emt 0:00:02]} 9. Nf3 {[%emt 0:01:53]} e6 {[%emt 0:01:32]} 10. Be2 {[%emt 0:02:05]} exd5 {[%emt 0:00:53]} 11. exd5 {[%emt 0:00:07]} d6 {[%emt 0:00:29]} 12. O-O {[%emt 0:00:42]} Na6 {[%emt 0:00:13]} 13. Qb3 {[%emt 0:10:07]} Rd7 {[%emt 0:18:28]} 14. Rd1 {[%emt 0:09:15]} Bb7 {[%emt 0:02:01]} 15. Bf4 {[%emt 0:05:24]} Qa8 {[%emt 0:02:57]} 16. Rd2 {[%emt 0:05:21]} Nc7 {[%emt 0:09:30]} 17. Bc4 {[%emt 0:06:30]} Rb8 {[%emt 0:06:46]} 18. Qd1 {[%emt 0:00:57]} Ba6 {[%emt 0:01:45]} 19. Bxa6 {[%emt 0:01:16]} Qxa6 {[%emt 0:00:32]} 20. h3 {[%emt 0:04:08]} Rb4 {[%emt 0:14:24]} 21. Be3 {[%emt 0:05:03]} Nb5 {[%emt 0:02:03]} 22. Qf1 {[%emt 0:04:52]} Ra7 {[%emt 0:02:02]} 23. Nxb5 {[%emt 0:04:14]} Qxb5 {[%emt 0:03:24]} 24. Qxb5 {[%emt 0:01:43]} Rxb5 {[%emt 0:00:02]} 25. Bf4 {[%emt 0:03:57]} Ne4 {[%emt 0:04:06]} 26. Re2 {[%emt 0:00:52]} f5 {[%emt 0:00:59]} 27. Ng5 {[%emt 0:02:36]} Nxg5 {[%emt 0:05:13]} 28. Bxg5 {[%emt 0:00:05]} Rxb2 {[%emt 0:00:31]} 29. Rae1 {[%emt 0:05:13]} Rxe2 {[%emt 0:06:26]} 30. Rxe2 {[%emt 0:00:03]} Be5 {[%emt 0:00:07]} 31. Be3 {[%emt 0:00:40]} Rb7 {[%emt 0:01:37]} 32. f4 {[%emt 0:08:36]} Bg7 {[%emt 0:03:30]} 33. Rc2 {[%emt 0:06:18]} Rb4 {[%emt 0:02:11]} 34. Kf1 {[%emt 0:01:32]} c4 {[%emt 0:00:30]} 35. Ke2 {[%emt 0:01:28]} c3 {[%emt 0:00:38]} 36. Kd3 {[%emt 0:01:16]} Ra4 {[%emt 0:00:37]} 37. g3 {[%emt 0:01:08]} Kf7 {[%emt 0:00:31]} 38. Re2 {[%emt 0:00:52]} Bf6 {[%emt 0:01:17]} 39. h4 {[%emt 0:00:23]} Kg7 {[%emt 0:01:18]} 40. Bf2 {[%emt 0:01:40]} Ra3 {[%emt 0:00:55]} 41. Rc2 {[%emt 0:31:24]} Ra4 {[%emt 0:33:36]} 42. Re2 {[%emt 0:00:18]} Kf7 {[%emt 0:01:24]} 43. Be3 {[%emt 0:02:51]} Rb4 {[%emt 0:00:00]} 44. Bf2 {[%emt 0:00:00]} Rb1 {[%emt 0:00:00]} 45. Be3 {[%emt 0:00:00]} Ra1 {[%emt 0:00:00]} 46. Kc4 {[%emt 0:00:00]} Rb1 {[%emt 0:00:00]} 47. Kd3 {[%emt 0:00:00]} Kg7 {[%emt 0:00:00]} 48. Kc4 {[%emt 0:00:00]} Kh6 {[%emt 0:00:00]} 49. a4 {[%emt 0:00:00]} Kh5 {[%emt 0:00:00]} 50. a5 {[%emt 0:00:00]} Rb2 {[%emt 0:00:00]} 51. Re1 {[%emt 0:00:00]} Ra2 {[%emt 0:01:49]} 52. Kb5 {[%emt 0:00:00]} c2 {[%emt 0:00:02]} 53. a6 {[%emt 0:00:00]} Bb2 {[%emt 0:00:33]} 54. Kb6 {[%emt 0:03:40]} Ra3 {[%emt 0:01:37]} 55. Bd2 {[%emt 0:06:07]} Bd4+ {[%emt 0:01:12]} 56. Kb7 {[%emt 0:00:08]} Rd3 {[%emt 0:00:21]} 57. a7 {[%emt 0:00:50]} Bxa7 {[%emt 0:00:06]} 58. Kxa7 {[%emt 0:00:07]} Rxd2 {[%emt 0:00:05]} 59. Rc1 {[%emt 0:00:06]} Rxd5 {[%emt 0:00:26]} 60. Rxc2 {[%emt 0:00:09]} Rd3 {[%emt 0:00:35]} 0-1

[Event "20th Prague Open 2022"]
[Site "Prague"]
[Date "2022.01.08"]
[Round "2.24"]
[White "Hrbek, Stepan"]
[Black "Finn, Peter"]
[Result "1/2-1/2"]
[ECO "A28"]
[WhiteElo "2179"]
[BlackElo "2020"]
[Annotator "ChessBase"]
[PlyCount "150"]
[EventDate "2022.01.07"]
[EventType "swiss"]
[EventCountry "CZE"]
[SourceTitle "playchess.com"]
[Source "ChessBase"]
[SourceQuality "1"]
[TimeControl "40/5400+30:1800+30"]

1. c4 {[%emt 0:00:24]} e5 {[%emt 0:00:57]} 2. Nc3 {[%emt 0:00:05]} Nf6 {[%emt 0:00:06]} 3. Nf3 {[%emt 0:00:04]} Nc6 {[%emt 0:00:04]} 4. e3 {[%emt 0:00:04]} Bb4 {[%emt 0:00:22]} 5. Qc2 {[%emt 0:00:18]} Bxc3 {[%emt 0:00:13]} 6. bxc3 {[%emt 0:01:21]} O-O {[%emt 0:00:30]} 7. e4 {[%emt 0:00:03]} d6 {[%emt 0:00:34]} 8. g3 {[%emt 0:00:17]} a6 {[%emt 0:01:33]} 9. Bg2 {[%emt 0:09:20]} b5 {[%emt 0:01:10]} 10. O-O {[%emt 0:01:43]} bxc4 {[%emt 0:26:46]} 11. Qa4 {[%emt 0:00:06]} Qd7 {[%emt 0:00:52]} 12. Qxc4 {[%emt 0:01:48]} a5 {[%emt 0:01:05]} 13. Qa4 {[%emt 0:06:15]} Ba6 {[%emt 0:08:49]} 14. Re1 {[%emt 0:01:51]} Rab8 {[%emt 0:22:06]} 15. Qc2 {[%emt 0:00:34]} Rfe8 {[%emt 0:03:15]} 16. d3 {[%emt 0:01:22]} h6 {[%emt 0:05:49]} 17. c4 {[%emt 0:05:05]} Nb4 {[%emt 0:07:44]} 18. Qd1 {[%emt 0:01:36]} c5 {[%emt 0:00:23]} 19. a3 {[%emt 0:06:27]} Nc6 {[%emt 0:00:05]} 20. Bd2 {[%emt 0:00:04]} Qc7 {[%emt 0:01:29]} 21. Qc2 {[%emt 0:18:53]} Bc8 {[%emt 0:00:30]} 22. Reb1 {[%emt 0:02:26]} Bd7 {[%emt 0:03:05]} 23. Rb5 {[%emt 0:01:16]} a4 {[%emt 0:03:22]} 24. Rab1 {[%emt 0:00:52]} Ne7 {[%emt 0:03:37]} 25. R5b2 {[%emt 0:03:51]} Nh7 {[%emt 0:00:28]} 26. Bf1 {[%emt 0:04:04]} Nf8 {[%emt 0:00:21]} 27. Be2 {[%emt 0:00:38]} Ne6 {[%emt 0:00:34]} 28. Bd1 {[%emt 0:00:46]} Nc6 {[%emt 0:04:28]} 29. Qc3 {[%emt 0:04:48]} Ncd4 {[%emt 0:02:13]} 30. Qa5 {[%emt 0:03:34]} Qxa5 {[%emt 0:00:04]} 31. Bxa5 {[%emt 0:00:08]} Rxb2 {[%emt 0:00:10]} 32. Rxb2 {[%emt 0:00:05]} Nxf3+ {[%emt 0:00:35]} 33. Bxf3 {[%emt 0:00:05]} Ra8 {[%emt 0:00:39]} 34. Bc3 {[%emt 0:00:58]} Kf8 {[%emt 0:00:11]} 35. Bd1 {[%emt 0:03:46]} Ke7 {[%emt 0:00:18]} 36. Rb6 {[%emt 0:00:10]} Nd8 {[%emt 0:01:54]} 37. f4 {[%emt 0:00:54]} f6 {[%emt 0:00:24]} 38. Kf2 {[%emt 0:04:16]} Nc6 {[%emt 0:00:45]} 39. Rb2 {[%emt 0:01:36]} Kd8 {[%emt 0:01:27]} 40. f5 {[%emt 0:03:33]} Kc7 {[%emt 0:00:49]} 41. h4 {[%emt 0:36:34]} Rb8 {[%emt 0:12:08]} 42. Rxb8 {[%emt 0:00:00]} Nxb8 {[%emt 0:00:26]} 43. g4 {[%emt 0:00:00]} Kd8 {[%emt 0:01:15]} 44. g5 {[%emt 0:00:00]} hxg5 {[%emt 0:00:06]} 45. hxg5 {[%emt 0:00:00]} Ke7 {[%emt 0:00:51]} 46. Kg3 {[%emt 0:00:00]} Bc6 {[%emt 0:12:07]} 47. Kh4 {[%emt 0:00:00]} Nd7 {[%emt 0:01:25]} 48. Kh5 {[%emt 0:00:00]} fxg5 {[%emt 0:00:27]} 49. Ba5 {[%emt 0:00:00]} Nf6+ {[%emt 0:00:37]} 50. Kg6 {[%emt 0:00:00]} Kf8 {[%emt 0:00:59]} 51. Bd8 {[%emt 0:00:00]} Be8+ {[%emt 0:00:29]} 52. Kxg5 {[%emt 0:00:00]} Nh7+ {[%emt 0:00:49]} 53. Kh4 {[%emt 0:00:00]} Nf6 {[%emt 0:00:22]} 54. Bf3 {[%emt 0:00:00]} Bf7 {[%emt 0:02:31]} 55. Be2 {[%emt 0:00:00]} Ke8 {[%emt 0:00:33]} 56. Bxf6 {[%emt 0:00:00]} gxf6 {[%emt 0:00:18]} 57. Bd1 {[%emt 0:00:00]} Kd8 {[%emt 0:01:40]} 58. Bxa4 {[%emt 0:00:00]} Kc7 {[%emt 0:00:34]} 59. Bb5 {[%emt 0:06:56]} Kb6 {[%emt 0:00:38]} 60. Bd7 {[%emt 0:00:19]} Ka5 {[%emt 0:00:27]} 61. Kg4 {[%emt 0:03:37]} Kb6 {[%emt 0:00:19]} 62. Ba4 {[%emt 0:03:23]} Ka5 {[%emt 0:00:25]} 63. Bd7 {[%emt 0:00:32]} Kb6 {[%emt 0:00:06]} 64. Kf3 {[%emt 0:00:05]} Bh5+ {[%emt 0:00:45]} 65. Ke3 {[%emt 0:00:04]} Ka5 {[%emt 0:00:27]} 66. Kd2 {[%emt 0:00:05]} Bf7 {[%emt 0:00:25]} 67. Kc3 {[%emt 0:00:55]} Bh5 {[%emt 0:00:09]} 68. Be6 {[%emt 0:00:26]} Be8 {[%emt 0:00:42]} 69. Bg8 {[%emt 0:00:08]} Bh5 {[%emt 0:00:31]} 70. Bd5 {[%emt 0:00:32]} Be8 {[%emt 0:00:22]} 71. Be6 {[%emt 0:00:05]} Bh5 {[%emt 0:00:09]} 72. Bd7 {[%emt 0:00:06]} Bf7 {[%emt 0:00:17]} 73. Kd2 {[%emt 0:00:13]} Bh5 {[%emt 0:00:16]} 74. Ke1 {[%emt 0:00:07]} Bf7 {[%emt 0:00:14]} 75. Ke2 {[%emt 0:00:12]} Bh5+ {[%emt 0:00:05]} 1/2-1/2